bitfinex-derivatives/quotes_BTCF0:USTF0_20250327
["timestamp","ask_amount","ask_price","bid_price","bid_amount"]
[1743109703505,0.22997495,87294.0,87293.0,0.0301]
[1743109703707,0.22997495,87294.0,87293.0,0.0341]
[1743109703908,0.34453101,87294.0,87293.0,0.0341]
[1743109704397,0.34953101,87294.0,87293.0,0.0341]
[1743109704915,0.33850074,87294.0,87293.0,0.0341]
[1743109705518,0.57850074,87294.0,87293.0,0.0341]
[1743109705814,0.35348139,87294.0,87293.0,0.0341]
[1743109706211,0.71428139,87294.0,87293.0,0.0341]
[1743109707417,0.72558138,87294.0,87293.0,0.0341]
[1743109707921,1.18459886,87294.0,87293.0,0.004]
[1743109708104,1.20435896,87294.0,87293.0,0.004]
[1743109708414,0.1145825,87289.0,87288.0,0.00025181]
[1743109708618,0.43865067,87289.0,87288.0,0.00025181]
[1743109708819,0.55035193,87289.0,87288.0,0.00017181]
[1743109709206,0.66491455,87289.0,87288.0,0.00017181]
[1743109709408,0.62491455,87289.0,87288.0,0.00017181]
[1743109709715,0.64222978,87289.0,87288.0,0.00017181]
[1743109709910,0.64522978,87289.0,87288.0,0.00017181]
[1743109710112,0.68522978,87289.0,87288.0,0.00017181]
[1743109710311,1.39251455,87289.0,87288.0,0.00017181]
[1743109711218,0.67091455,87289.0,87288.0,0.00017181]
[1743109711418,1.39251455,87289.0,87288.0,0.00017181]
[1743109711814,1.39259429,87289.0,87288.0,0.00017181]
[1743109712014,1.3812943,87289.0,87288.0,0.00017181]
[1743109712216,1.58031178,87289.0,87288.0,0.00017181]
[1743109713525,1.59159381,87289.0,87288.0,0.00017181]
[1743109713723,1.59158526,87289.0,87288.0,0.00017181]
[1743109713915,0.86998526,87289.0,87288.0,0.00017181]
[1743109714114,0.85870323,87289.0,87288.0,0.00017181]
[1743109714313,1.58030323,87289.0,87288.0,0.00017181]
[1743109714924,1.56529358,87289.0,87288.0,0.00017181]
[1743109716025,0.1145891,87284.0,87283.0,8e-05]
[1743109716221,0.26812652,87284.0,87283.0,8e-05]
[1743109716421,0.33012652,87284.0,87283.0,8e-05]
[1743109716725,1.17349041,87284.0,87283.0,8e-05]
[1743109717217,1.17549041,87284.0,87283.0,8e-05]
[1743109717420,1.15118167,87284.0,87283.0,8e-05]
[1743109717620,1.17542572,87284.0,87283.0,8e-05]
[1743109718015,1.18713302,87284.0,87283.0,1.03e-05]
[1743109718327,1.18719533,87284.0,87283.0,1.03e-05]
[1743109718918,1.18919533,87284.0,87283.0,1.03e-05]
[1743109719313,1.24490807,87284.0,87283.0,1.03e-05]
[1743109719722,1.46490807,87284.0,87283.0,1.03e-05]
[1743109720022,1.24490807,87284.0,87283.0,1.03e-05]
[1743109722722,0.52330807,87284.0,87283.0,1.03e-05]
[1743109722918,0.88410807,87284.0,87283.0,1.03e-05]
[1743109723624,0.88408912,87284.0,87283.0,1.03e-05]
[1743109724219,0.88408912,87284.0,87283.0,0.0628103]
[1743109725225,0.88412339,87284.0,87283.0,0.0325103]
[1743109725525,0.77464339,87284.0,87283.0,0.0325103]
[1743109725716,0.85262339,87284.0,87283.0,0.0325103]
[1743109726120,0.88502339,87284.0,87283.0,0.0325103]
[1743109726817,0.77574339,87284.0,87283.0,0.0325103]
[1743109727025,0.72498243,87284.0,87283.0,0.0325103]
[1743109727222,0.74934699,87284.0,87283.0,0.0325103]
[1743109727819,0.74361516,87284.0,87283.0,0.0325103]
[1743109728013,0.74361516,87284.0,87283.0,0.0331503]
[1743109728218,0.74361516,87284.0,87283.0,0.0649503]
[1743109728724,0.03148,87288.0,87283.0,0.0649503]
[1743109728725,0.10936,87292.0,87291.0,0.1145799]
[1743109729023,8e-05,87295.0,87294.0,0.171864]
[1743109729222,0.11561471,87295.0,87294.0,0.322904]
[1743109730931,0.12061471,87295.0,87294.0,0.322904]
[1743109731431,0.12061471,87295.0,87294.0,0.00104]
[1743109731632,0.18761471,87295.0,87294.0,0.00104]
[1743109731818,0.18761471,87295.0,87294.0,0.115616]
[1743109732220,0.15591471,87295.0,87294.0,0.115616]
[1743109733328,0.26559471,87295.0,87294.0,0.115616]
[1743109735629,0.29719471,87295.0,87294.0,0.115616]
[1743109736324,0.26559471,87295.0,87294.0,0.115616]
[1743109737618,0.29789471,87295.0,87294.0,0.115616]
[1743109738423,0.15102001,87295.0,87294.0,0.115616]
[1743109738632,0.26559471,87295.0,87294.0,0.115616]
[1743109741019,0.30668126,87295.0,87294.0,0.115616]
[1743109741428,0.30668126,87295.0,87294.0,0.148716]
[1743109741825,0.31334182,87295.0,87294.0,0.148716]
[1743109744221,0.31334182,87295.0,87294.0,0.610352]
[1743109744825,0.31334182,87295.0,87294.0,0.642752]
[1743109747537,0.31334182,87295.0,87294.0,0.609652]
[1743109751741,0.31334182,87295.0,87294.0,0.577252]
[1743109753337,0.31334182,87295.0,87294.0,0.607952]
[1743109753551,0.31354412,87295.0,87294.0,0.607952]
[1743109754337,0.31354412,87295.0,87294.0,0.577252]
[1743109754738,0.31354412,87295.0,87294.0,0.462676]
[1743109758151,0.41635939,87295.0,87294.0,0.462676]
[1743109758354,0.42961369,87295.0,87294.0,0.462676]
[1743109760153,0.42961369,87295.0,87294.0,0.577252]
[1743109760645,0.41649695,87295.0,87294.0,0.577252]
[1743109760845,0.429758,87295.0,87294.0,0.577252]
[1743109761644,0.46402976,87295.0,87294.0,0.609052]
[1743109762544,0.46393395,87295.0,87294.0,0.609052]
[1743109763147,0.46393395,87295.0,87294.0,0.577252]
[1743109763451,0.46393395,87295.0,87294.0,0.462676]
[1743109764447,0.46393395,87295.0,87294.0,0.577252]
[1743109764749,0.32684692,87295.0,87294.0,0.577252]
[1743109765343,0.32684692,87295.0,87294.0,0.609552]
[1743109767050,0.32684692,87295.0,87294.0,0.577252]
[1743109768345,0.32684164,87295.0,87294.0,0.577252]
[1743109769448,0.32684164,87295.0,87294.0,0.610252]
[1743109771547,0.4642944,87295.0,87294.0,0.610252]
[1743109773955,0.45105484,87295.0,87294.0,0.610252]
[1743109774263,0.46429077,87295.0,87294.0,0.610252]
[1743109775258,0.45105484,87295.0,87294.0,0.610252]
[1743109775446,0.46429486,87295.0,87294.0,0.610252]
[1743109775859,0.4642942,87295.0,87294.0,0.610252]
[1743109776657,0.3546142,87295.0,87294.0,0.610252]
[1743109776859,0.4639742,87295.0,87294.0,0.610252]
[1743109777860,0.46397012,87295.0,87294.0,0.610252]
[1743109780358,0.46397012,87295.0,87294.0,0.642852]
[1743109782758,0.35461012,87295.0,87294.0,0.642852]
[1743109783063,0.41831418,87295.0,87294.0,0.642852]
[1743109783460,0.41831418,87295.0,87294.0,0.892852]
[1743109783663,0.28086142,87295.0,87294.0,0.892852]
[1743109784368,0.28086142,87295.0,87294.0,0.642852]
[1743109784569,0.31266142,87295.0,87294.0,0.642852]
[1743109789370,0.31271787,87295.0,87294.0,0.642852]
[1743109791260,0.31271435,87295.0,87294.0,0.642852]
[1743109793062,0.30361527,87295.0,87294.0,0.642852]
[1743109793365,0.31271949,87295.0,87294.0,0.642852]
[1743109795273,0.19814479,87295.0,87294.0,0.642852]
[1743109797670,0.19814479,87295.0,87294.0,0.84700368]
[1743109798969,0.19817706,87295.0,87294.0,0.84700368]
[1743109799568,0.31275176,87295.0,87294.0,0.84700368]
[1743109799768,0.19817706,87295.0,87294.0,0.84700368]
[1743109800474,0.31275176,87295.0,87294.0,0.84700368]
[1743109800774,0.31274163,87295.0,87294.0,0.84700368]
[1743109801162,0.19816693,87295.0,87294.0,0.84700368]
[1743109806371,0.19816693,87295.0,87294.0,0.642852]
[1743109808782,0.19816693,87295.0,87294.0,0.610252]
[1743109809682,0.19816541,87295.0,87294.0,0.610252]
[1743109810879,0.3117001,87295.0,87294.0,0.610252]
[1743109811083,0.3127801,87295.0,87294.0,0.610252]
[1743109811284,0.1982054,87295.0,87294.0,0.610252]
[1743109811579,0.19817909,87295.0,87294.0,0.610252]
[1743109811978,0.19709909,87295.0,87294.0,0.610252]
[1743109812578,0.19817909,87295.0,87294.0,0.610252]
[1743109815479,0.19819405,87295.0,87294.0,0.610252]
[1743109817880,0.08895405,87295.0,87294.0,0.610252]
[1743109821189,0.07984056,87295.0,87294.0,0.610252]
[1743109821389,0.08897702,87295.0,87294.0,0.610252]
[1743109823191,0.0889676,87295.0,87294.0,0.610252]
[1743109823593,0.08896979,87295.0,87294.0,0.610252]
[1743109827097,0.08898711,87295.0,87294.0,0.971052]
[1743109827293,0.08898711,87295.0,87294.0,0.610252]
[1743109827496,0.08898711,87295.0,87294.0,0.971052]
[1743109828103,0.13745276,87301.0,87294.0,0.971052]
[1743109828104,8e-05,87309.0,87295.0,0.0572873]
[1743109828306,0.03962255,87310.0,87305.0,0.4753615]
[1743109828495,0.1723988,87306.0,87305.0,0.4753615]
[1743109828801,0.17243879,87306.0,87305.0,0.5400815]
[1743109829398,0.17543879,87306.0,87305.0,0.5400815]
[1743109829794,0.00408,87306.0,87305.0,0.5400815]
[1743109830002,0.003,87306.0,87305.0,0.5400815]
[1743109830202,0.003,87306.0,87305.0,0.55203311]
[1743109830610,0.031,87310.0,87309.0,0.1145563]
[1743109830811,0.03204001,87310.0,87309.0,0.1155963]
[1743109831108,0.03204001,87310.0,87309.0,0.1485963]
[1743109831308,0.06364001,87310.0,87309.0,0.1485963]
[1743109832401,0.06664001,87310.0,87309.0,0.1485963]
[1743109833206,0.09684001,87310.0,87309.0,0.1485963]
[1743109837410,0.21139501,87310.0,87309.0,0.1485963]
[1743109838006,0.21139501,87310.0,87309.0,0.00104]
[1743109838208,0.32035501,87310.0,87309.0,0.00104]
[1743109838411,0.33166494,87310.0,87309.0,0.00104]
[1743109838609,0.34683929,87310.0,87309.0,0.00104]
[1743109839209,0.34683929,87310.0,87309.0,0.1155963]
[1743109840004,0.356334,87310.0,87309.0,0.1155963]
[1743109840308,0.33166494,87310.0,87309.0,0.1155963]
[1743109840511,0.36348568,87310.0,87309.0,0.1155963]
[1743109842209,0.36348568,87310.0,87309.0,0.1145563]
[1743109842409,0.36348568,87310.0,87309.0,0.1155963]
[1743109845217,0.72428568,87310.0,87309.0,0.1155963]
[1743109848521,0.36348568,87310.0,87309.0,0.1155963]
[1743109848711,0.72428568,87310.0,87309.0,0.1155963]
[1743109849019,0.36348568,87310.0,87309.0,0.1155963]
[1743109849216,0.72428568,87310.0,87309.0,0.1155963]
[1743109849917,0.72447907,87310.0,87309.0,0.1155963]
[1743109854521,0.72451692,87310.0,87309.0,0.1155963]
[1743109855725,0.72449181,87310.0,87309.0,0.1155963]
[1743109859550,0.36369181,87310.0,87309.0,0.1474963]
[1743109862730,0.36380674,87310.0,87309.0,0.1474963]
[1743109863816,0.37718278,87310.0,87309.0,0.1474963]
[1743109864222,0.37718416,87310.0,87309.0,0.1474963]
[1743109869824,0.37718416,87310.0,87309.0,0.1791963]
[1743109870732,0.36179452,87310.0,87309.0,0.1791963]
[1743109871531,0.35048459,87310.0,87309.0,0.1791963]
[1743109876038,0.34985231,87310.0,87309.0,0.1791963]
[1743109877933,0.34985212,87310.0,87309.0,0.1791963]
[1743109879722,0.34985538,87310.0,87309.0,0.1791963]
[1743109881732,0.34983541,87310.0,87309.0,0.1791963]
[1743109882930,0.34983541,87310.0,87309.0,0.38442542]
[1743109885023,0.17967541,87310.0,87309.0,0.38442542]
[1743109885227,0.28859541,87310.0,87309.0,0.38442542]
[1743109885427,0.28860681,87310.0,87309.0,0.38442542]
[1743109886337,0.27535181,87310.0,87309.0,0.38442542]
[1743109887038,0.30705181,87310.0,87309.0,0.38442542]
[1743109889236,0.30707425,87310.0,87309.0,0.38442542]
[1743109891238,0.30707556,87310.0,87309.0,0.38442542]
[1743109892441,0.30707556,87310.0,87309.0,0.1791963]
[1743109892938,0.32033572,87310.0,87309.0,0.1791963]
[1743109893138,0.32033707,87310.0,87309.0,0.1791963]
[1743109894935,0.32033784,87310.0,87309.0,0.1791963]
[1743109900642,0.31120957,87310.0,87309.0,0.1791963]
[1743109900833,0.32033056,87310.0,87309.0,0.1791963]
[1743109903540,0.32032488,87310.0,87309.0,0.1791963]
[1743109903940,0.30706963,87310.0,87309.0,0.1791963]
[1743109904440,0.29794864,87310.0,87309.0,0.1791963]
[1743109904760,0.30706169,87310.0,87309.0,0.1791963]
[1743109906041,0.19814169,87310.0,87309.0,0.1791963]
[1743109906240,0.30706169,87310.0,87309.0,0.1791963]
[1743109906750,0.08358669,87310.0,87309.0,0.1791963]
[1743109906950,0.02028669,87310.0,87309.0,0.1791963]
[1743109907351,0.02028669,87310.0,87309.0,0.4291963]
[1743109908436,0.02028669,87310.0,87309.0,0.1791963]
[1743109910142,0.02028669,87310.0,87309.0,0.1911255]
[1743109910342,0.02035971,87310.0,87309.0,0.1791963]
[1743109910752,0.05305971,87310.0,87309.0,0.1791963]
[1743109910949,0.05305971,87310.0,87309.0,0.45305723]
[1743109913047,0.05305971,87310.0,87309.0,0.46474033]
[1743109913255,0.05305971,87310.0,87309.0,0.82554033]
[1743109915157,0.05305971,87310.0,87309.0,0.5516794]
[1743109915453,0.05313971,87310.0,87309.0,0.5516794]
[1743109916054,0.05202351,87310.0,87309.0,0.5516794]
[1743109916257,0.05306352,87310.0,87309.0,0.5516794]
[1743109917859,0.05306337,87310.0,87309.0,0.5516794]
[1743109919556,0.05306337,87310.0,87309.0,0.5399963]
[1743109919774,0.16657836,87310.0,87309.0,0.5399963]
[1743109919963,0.16761837,87310.0,87309.0,0.5399963]
[1743109920261,0.18273565,87310.0,87309.0,0.5399963]
[1743109921362,0.19418492,87310.0,87309.0,0.1791963]
[1743109921663,0.19418492,87310.0,87309.0,0.5399963]
[1743109921861,0.22588492,87310.0,87309.0,0.5399963]
[1743109922361,0.25738492,87310.0,87309.0,0.5399963]
[1743109922952,0.11132992,87310.0,87309.0,0.5399963]
[1743109923258,0.11028991,87310.0,87309.0,0.5399963]
[1743109923451,0.09992064,87310.0,87309.0,0.5399963]
[1743109925261,0.21447564,87310.0,87309.0,0.5399963]
[1743109926466,0.21447564,87310.0,87309.0,0.1791963]
[1743109926766,0.21447564,87310.0,87309.0,0.5399963]
[1743109928462,0.21447564,87310.0,87309.0,0.1791963]
[1743109929167,0.09992064,87310.0,87309.0,0.5399963]
[1743109930668,0.10000685,87310.0,87309.0,0.5399963]
[1743109931369,0.08499564,87310.0,87309.0,0.5399963]
[1743109933266,0.08391564,87310.0,87309.0,0.5399963]
[1743109933576,0.08451565,87310.0,87309.0,0.5399963]
[1743109934270,0.08451565,87310.0,87309.0,0.81385723]
[1743109935962,0.08391564,87310.0,87309.0,0.81385723]
[1743109936266,0.08503565,87310.0,87309.0,0.81385723]
[1743109936566,0.08486803,87310.0,87309.0,0.81385723]
[1743109936766,0.08374802,87310.0,87309.0,0.81385723]
[1743109937470,0.08374802,87310.0,87309.0,0.5399963]
[1743109937666,0.08434803,87310.0,87309.0,0.5399963]
[1743109939376,0.09947904,87310.0,87309.0,0.5399963]
[1743109941374,0.09984997,87310.0,87309.0,0.5399963]
[1743109941575,0.13304997,87310.0,87309.0,0.5399963]
[1743109941981,0.13304997,87310.0,87309.0,0.1791963]
[1743109942181,0.13304997,87310.0,87309.0,0.5399963]
[1743109942778,0.13304997,87310.0,87309.0,0.1791963]
[1743109942978,0.13304997,87310.0,87309.0,0.5399963]
[1743109943874,0.10833364,87310.0,87309.0,0.5399963]
[1743109944077,0.13244603,87310.0,87309.0,0.5399963]
[1743109944678,0.13348604,87310.0,87309.0,0.5399963]
[1743109947773,0.13348446,87310.0,87309.0,0.5399963]
[1743109956381,0.13348446,87310.0,87309.0,0.1791963]
[1743109956578,0.13348446,87310.0,87309.0,0.5399963]
[1743109970891,0.13352986,87310.0,87309.0,0.5399963]
[1743109971482,0.13552986,87310.0,87309.0,0.5399963]
[1743109976502,0.11077364,87310.0,87309.0,0.5399963]
[1743109976701,0.13554013,87310.0,87309.0,0.5399963]
[1743109980694,0.13554013,87310.0,87309.0,0.1791963]
[1743109981095,0.13554013,87310.0,87309.0,0.5399963]
[1743109981397,0.13563907,87310.0,87309.0,0.5399963]
[1743109983694,0.13563907,87310.0,87309.0,0.1791963]
[1743109983897,0.13563907,87310.0,87309.0,0.5399963]
[1743109985700,0.13568045,87310.0,87309.0,0.5399963]
[1743109987607,0.13568045,87310.0,87309.0,0.1791963]
[1743109987909,0.13568045,87310.0,87309.0,0.5399963]
[1743109989393,0.14812016,87310.0,87309.0,0.5399963]
[1743109989901,0.14812016,87310.0,87309.0,0.1791963]
[1743109990101,0.14812016,87310.0,87309.0,0.5399963]
[1743109990409,0.14802122,87310.0,87309.0,0.1791963]
[1743109990611,0.14802122,87310.0,87309.0,0.5399963]
[1743109991308,0.14809448,87310.0,87309.0,0.5399963]
[1743109993115,0.1480545,87310.0,87309.0,0.5399963]
[1743109994108,0.14805619,87310.0,87309.0,0.5399963]
[1743109995214,0.13668937,87310.0,87309.0,0.1791963]
[1743109995714,0.13668937,87310.0,87309.0,0.5399963]
[1743109997019,0.13669738,87310.0,87309.0,0.5399963]
[1743109999521,0.13669738,87310.0,87309.0,0.1791963]
[1743109999707,0.13669738,87310.0,87309.0,0.5399963]
[1743110002933,0.02576876,87310.0,87309.0,0.5399963]
[1743110003237,0.00117894,87320.0,87318.0,0.1145445]
[1743110003427,0.00117894,87320.0,87319.0,0.1145432]
[1743110003633,0.00253894,87320.0,87319.0,0.3659032]
[1743110003934,0.00117894,87320.0,87319.0,0.4589032]
[1743110004134,0.00148058,87326.0,87319.0,0.4135065]
[1743110004431,0.00156058,87326.0,87324.0,0.4753366]
[1743110004637,0.00156058,87326.0,87324.0,0.4766966]
[1743110004937,0.00156058,87326.0,87324.0,0.5372966]
[1743110006425,0.00354285,87325.0,87324.0,0.5372966]
[1743110007240,0.00354285,87325.0,87324.0,0.1764966]
[1743110007536,0.00354285,87325.0,87324.0,0.8980966]
[1743110013030,0.11369533,87325.0,87324.0,0.4766966]
[1743110013240,0.11369533,87325.0,87324.0,0.5080966]
[1743110014842,0.12526397,87325.0,87324.0,0.5080966]
[1743110015042,0.13475609,87325.0,87324.0,0.5080966]
[1743110015242,0.13475609,87325.0,87324.0,0.78138068]
[1743110017835,0.13475609,87325.0,87324.0,0.42058068]
[1743110018032,0.13475609,87325.0,87324.0,0.78138068]
[1743110018646,0.13475609,87325.0,87324.0,0.5080966]
[1743110022746,0.12318745,87325.0,87324.0,0.5080966]
[1743110023347,0.12318745,87325.0,87324.0,0.5389966]
[1743110025251,8e-05,87326.0,87324.0,0.5389966]
[1743110025441,0.01537031,87344.0,87326.0,0.057267]
[1743110025752,0.034769,87342.0,87335.0,0.1145222]
[1743110025947,0.034769,87342.0,87338.0,0.1145183]
[1743110026153,9e-08,87339.0,87338.0,0.1159183]
[1743110026350,9e-08,87339.0,87338.0,0.1791183]
[1743110026547,9e-08,87339.0,87338.0,0.19090206]
[1743110026849,0.002669,87342.0,87340.0,0.1145156]
[1743110027045,0.002669,87342.0,87340.0,0.12439207]
[1743110027240,0.002669,87342.0,87340.0,0.18759207]
[1743110031052,1e-08,87345.0,87344.0,0.1145104]
[1743110031363,1e-08,87345.0,87344.0,0.4766704]
[1743110031561,1e-08,87345.0,87344.0,0.5395704]
[1743110033243,1e-08,87345.0,87344.0,0.1787704]
[1743110033442,1e-08,87345.0,87344.0,0.5395704]
[1743110034051,0.03230001,87345.0,87344.0,0.5395704]
[1743110035252,0.04736439,87345.0,87344.0,0.5395704]
[1743110037250,0.03230001,87345.0,87344.0,0.5395704]
[1743110037450,0.04162683,87345.0,87344.0,0.5395704]
[1743110038561,0.00932683,87345.0,87344.0,0.5395704]
[1743110039751,0.00932683,87345.0,87344.0,0.74443533]
[1743110040359,0.02422677,87345.0,87344.0,0.74443533]
[1743110040751,0.08552677,87345.0,87344.0,0.74443533]
[1743110040955,0.09238005,87345.0,87344.0,0.74443533]
[1743110041862,0.09238005,87345.0,87344.0,0.71403533]
[1743110042765,0.09238005,87345.0,87344.0,0.5091704]
[1743110043162,0.10398977,87345.0,87344.0,0.5091704]
[1743110043656,0.10398977,87345.0,87344.0,0.5413704]
[1743110044554,0.1042509,87345.0,87344.0,0.5413704]
[1743110045059,0.09875762,87345.0,87344.0,0.5413704]
[1743110045269,0.09875762,87345.0,87344.0,0.5091704]
[1743110050354,0.21326672,87345.0,87344.0,0.36216]
[1743110050555,0.23163028,87345.0,87344.0,0.36216]
[1743110050963,0.23163028,87345.0,87344.0,0.4766704]
[1743110051369,0.23163028,87345.0,87344.0,0.1158704]
[1743110053364,0.23267744,87345.0,87344.0,0.1158704]
[1743110054763,0.23267744,87345.0,87344.0,0.00136]
[1743110055359,0.36081714,87345.0,87344.0,0.00136]
[1743110055766,0.36081714,87345.0,87335.0,0.31936068]
[1743110055767,0.1145196,87337.0,87335.0,0.31936068]
[1743110055957,0.24993466,87337.0,87335.0,0.31936068]
[1743110056158,0.34763466,87337.0,87336.0,0.00121181]
[1743110056355,0.36599822,87337.0,87336.0,0.00121181]
[1743110057165,0.36593122,87337.0,87336.0,0.11573231]
[1743110060461,0.36593122,87337.0,87336.0,0.00121181]
[1743110061762,2.50195522,87337.0,87336.0,0.00121181]
[1743110062066,2.50195522,87337.0,87336.0,0.00017181]
[1743110062969,2.50170038,87337.0,87336.0,0.00017181]
[1743110064271,2.50170038,87337.0,87336.0,0.11469271]
[1743110064677,2.50170038,87337.0,87336.0,0.00017181]
[1743110064972,2.50170038,87337.0,87336.0,0.11469271]
[1743110065572,2.50170038,87337.0,87336.0,0.00017181]
[1743110067275,2.50170038,87337.0,87336.0,0.11469271]
[1743110067473,2.50170038,87337.0,87336.0,0.00017181]
[1743110067670,0.0572651,87330.0,87328.0,0.1145301]
[1743110067972,0.29300971,87329.0,87328.0,0.1461301]
[1743110068178,0.31241328,87329.0,87328.0,0.1461301]
[1743110068569,0.31294577,87329.0,87328.0,0.1461301]
[1743110068766,0.33078509,87329.0,87328.0,0.1461301]
[1743110069161,0.31294577,87329.0,87328.0,0.1461301]
[1743110070680,0.31286885,87329.0,87328.0,0.1461301]
[1743110072078,0.33070729,87329.0,87328.0,0.1461301]
[1743110072481,0.31286885,87329.0,87328.0,0.1461301]
[1743110074588,0.33070729,87329.0,87328.0,0.1461301]
[1743110075084,0.31286885,87329.0,87328.0,0.1461301]
[1743110075282,0.33070729,87329.0,87328.0,0.1461301]
[1743110077189,0.31286885,87329.0,87328.0,0.1461301]
[1743110080984,0.28076885,87329.0,87328.0,0.1461301]
[1743110082594,0.38960885,87329.0,87328.0,0.1461301]
[1743110083590,0.16623745,87329.0,87328.0,0.1461301]
[1743110083784,0.27507745,87329.0,87328.0,0.1461301]
[1743110085187,0.28874779,87329.0,87328.0,0.1773301]
[1743110087598,0.2887754,87329.0,87328.0,0.1773301]
[1743110087804,0.27507745,87329.0,87328.0,0.1773301]
[1743110088289,2.0159642,87327.0,87325.0,0.0572672]
[1743110088494,0.05756878,87326.0,87325.0,0.0579472]
[1743110088695,0.07653235,87326.0,87325.0,0.0579472]
[1743110089195,0.08837953,87326.0,87325.0,0.0579472]
[1743110089396,0.20291353,87326.0,87325.0,0.1724825]
[1743110089599,0.20322289,87326.0,87325.0,0.1724825]
[1743110091502,0.20354142,87326.0,87325.0,0.1724825]
[1743110091707,0.20354142,87326.0,87325.0,0.2330825]
[1743110093308,0.20365732,87326.0,87325.0,0.2330825]
[1743110095203,0.20364629,87326.0,87325.0,0.2330825]
[1743110098309,0.23414629,87326.0,87325.0,0.2330825]
[1743110099012,0.23418462,87326.0,87325.0,0.2330825]
[1743110103215,0.07730344,87326.0,87325.0,0.2330825]
[1743110103415,0.19183744,87326.0,87325.0,0.2330825]
[1743110104116,0.19178917,87326.0,87325.0,0.2330825]
[1743110105114,0.07725517,87326.0,87325.0,0.2330825]
[1743110105615,0.06324315,87326.0,87325.0,0.2330825]
[1743110106117,0.09494315,87326.0,87325.0,0.2330825]
[1743110106317,0.19158917,87326.0,87325.0,0.24485848]
[1743110106518,0.18028852,87326.0,87325.0,0.24485848]
[1743110107117,0.18028852,87326.0,87325.0,0.60565848]
[1743110107313,0.06575452,87326.0,87325.0,0.60565848]
[1743110107518,0.03405452,87326.0,87325.0,0.60565848]
[1743110107715,0.03405452,87326.0,87325.0,0.5938825]
[1743110107918,0.06486472,87326.0,87325.0,0.5938825]
[1743110109513,0.06486472,87326.0,87325.0,0.60561238]
[1743110114621,0.03906292,87326.0,87325.0,0.60561238]
[1743110114923,0.03906292,87326.0,87325.0,0.5938825]
[1743110115618,0.05478279,87326.0,87325.0,0.5938825]
[1743110115823,0.06460771,87326.0,87325.0,0.5938825]
[1743110117324,0.00982492,87326.0,87325.0,0.5938825]
[1743110117628,1.8442438,87327.0,87326.0,0.114534]
[1743110117629,0.08270288,87327.0,87326.0,0.114534]
[1743110117925,0.08262288,87327.0,87326.0,0.365414]
[1743110118225,0.04361038,87327.0,87326.0,0.430414]
[1743110119224,8e-08,87328.0,87327.0,0.1145327]
[1743110119421,8e-08,87328.0,87327.0,0.1154127]
[1743110119621,8e-08,87328.0,87327.0,0.1775127]
[1743110119820,8e-08,87328.0,87327.0,0.4275127]
[1743110120929,0.08886922,87338.0,87337.0,0.1145196]
[1743110121120,0.11793164,87344.0,87343.0,0.1145117]
[1743110121426,0.11905165,87344.0,87343.0,0.4764317]
[1743110121622,0.11793164,87344.0,87343.0,0.7264317]
[1743110121823,1e-08,87345.0,87344.0,0.1145104]
[1743110122021,1e-08,87345.0,87344.0,0.1156304]
[1743110122232,1e-08,87345.0,87344.0,0.1774304]
[1743110122424,1e-08,87345.0,87344.0,0.4274304]
[1743110123626,1e-08,87345.0,87344.0,1.1490304]
[1743110124136,1e-08,87345.0,87344.0,1.16052314]
[1743110125824,0.03150001,87345.0,87344.0,1.16052314]
[1743110126622,1e-08,87345.0,87344.0,1.16052314]
[1743110128333,0.0034285,87346.0,87345.0,0.1145091]
[1743110128537,0.0034285,87346.0,87345.0,0.1782291]
[1743110129331,0.00319226,87348.0,87347.0,0.1145065]
[1743110129636,0.00319226,87348.0,87347.0,0.1156265]
[1743110130137,0.00319226,87348.0,87347.0,0.1765265]
[1743110130933,9e-08,87349.0,87348.0,0.1145051]
[1743110131129,2e-08,87350.0,87349.0,0.1145038]
[1743110131431,2e-08,87350.0,87349.0,0.2087238]
[1743110131632,5e-08,87356.0,87355.0,0.114496]
[1743110131931,0.15892,87370.0,87369.0,0.1144776]
[1743110132126,0.18493402,87370.0,87369.0,0.1155976]
[1743110132718,0.18493402,87370.0,87369.0,0.1769976]
[1743110133732,0.076203,87370.0,87369.0,0.1769976]
[1743110135026,0.171603,87370.0,87369.0,0.1769976]
[1743110135627,0.17047211,87370.0,87369.0,0.1769976]
[1743110135834,0.17159212,87370.0,87369.0,0.1769976]
[1743110136330,0.15616313,87370.0,87369.0,0.1769976]
[1743110138337,0.17132107,87370.0,87369.0,0.1769976]
[1743110138538,0.15616313,87370.0,87369.0,0.1769976]
[1743110139329,0.15598807,87370.0,87369.0,0.1769976]
[1743110139533,0.17113721,87370.0,87369.0,0.1769976]
[1743110139729,0.17111271,87370.0,87369.0,0.1769976]
[1743110140635,0.17113011,87370.0,87369.0,0.1769976]
[1743110140835,0.15598807,87370.0,87369.0,0.1769976]
[1743110141037,0.17112611,87370.0,87369.0,0.1769976]
[1743110145137,0.17106451,87370.0,87369.0,0.1769976]
[1743110146238,0.17788017,87370.0,87369.0,0.1769976]
[1743110146945,0.17798404,87370.0,87369.0,0.1769976]
[1743110148848,0.17803121,87370.0,87369.0,0.1769976]
[1743110149243,0.17803885,87370.0,87369.0,0.1769976]
[1743110152750,0.17792925,87370.0,87369.0,0.1769976]
[1743110153749,0.16279474,87370.0,87369.0,0.1769976]
[1743110154251,0.15597908,87370.0,87369.0,0.1769976]
[1743110156651,0.15546979,87370.0,87369.0,0.1769976]
[1743110160554,0.15541956,87370.0,87369.0,0.1769976]
[1743110162357,0.15429955,87370.0,87369.0,0.1769976]
[1743110164255,0.15549956,87370.0,87369.0,0.1769976]
[1743110164754,0.15429955,87370.0,87369.0,0.1769976]
[1743110166454,0.15429955,87370.0,87369.0,0.57248738]
[1743110167446,0.15429955,87370.0,87369.0,0.93328738]
[1743110167651,0.15541956,87370.0,87369.0,0.93328738]
[1743110167850,0.15429955,87370.0,87369.0,0.93328738]
[1743110168159,0.15541956,87370.0,87369.0,0.93328738]
[1743110168953,0.15429955,87370.0,87369.0,0.93328738]
[1743110169155,0.14652001,87370.0,87369.0,0.93328738]
[1743110169357,0.15449409,87370.0,87369.0,0.93328738]
[1743110169560,0.1556941,87370.0,87369.0,0.93328738]
[1743110169754,0.16115726,87370.0,87369.0,0.93328738]
[1743110170566,0.15449409,87370.0,87369.0,0.93328738]
[1743110171170,0.15444355,87370.0,87369.0,0.93328738]
[1743110173057,0.15445353,87370.0,87369.0,0.93328738]
[1743110174566,0.12245353,87370.0,87369.0,0.93328738]
[1743110175867,0.1134,87370.0,87369.0,0.93328738]
[1743110176069,0.12245321,87370.0,87369.0,0.93328738]
[1743110176969,0.12245646,87370.0,87369.0,0.93328738]
[1743110178266,0.05905646,87370.0,87369.0,0.93328738]
[1743110178865,0.05908446,87370.0,87369.0,0.93328738]
[1743110179464,6e-08,87370.0,87369.0,0.93328738]
[1743110179863,6e-08,87370.0,87369.0,1.18328738]
[1743110180766,8e-05,87372.0,87371.0,0.114475]
[1743110180966,8e-05,87372.0,87371.0,0.476395]
[1743110181169,8e-05,87372.0,87371.0,0.539395]
[1743110183268,0.0572362,87373.0,87372.0,0.1717072]